bitfinex/quotes_SOLUSD_20260203
["timestamp","ask_amount","ask_price","bid_price","bid_amount"]
[1770149749401,4.5,98.522,98.45,10.40379326]
[1770149749712,4.5,98.522,98.45,0.1]
[1770149749918,4.5,98.522,98.47,10.30379326]
[1770149750230,4.5,98.522,98.48,10.30379326]
[1770149750797,4.5,98.552,98.49,10.30379326]
[1770149751323,4.5,98.552,98.48,10.30379326]
[1770149751525,4.5,98.552,98.49,10.30379326]
[1770149752095,4.5,98.552,98.45,0.1]
[1770149752309,4.5,98.552,98.47,10.30379326]
[1770149752499,4.5,98.552,98.48,10.30379326]
[1770149752717,4.5,98.552,98.46,10.30379326]
[1770149753594,4.5,98.55,98.46,10.30379326]
[1770149753800,28.2,98.553,98.46,10.30379326]
[1770149753801,4.5,98.542,98.46,10.30379326]
[1770149753996,4.5,98.542,98.48,10.30379326]
[1770149754518,4.5,98.542,98.5,10.30379326]
[1770149755211,4.5,98.542,98.49,10.30379326]
[1770149755414,4.5,98.542,98.48,10.30379326]
[1770149755721,4.5,98.542,98.47,10.30379326]
[1770149757406,4.5,98.542,98.48,10.30379326]
[1770149757794,4.5,98.542,98.47,10.30379326]
[1770149758009,4.5,98.542,98.48,10.30379326]
[1770149761102,4.5,98.542,98.47,10.30379326]
[1770149761322,4.5,98.542,98.48,10.30379326]
[1770149761822,4.5,98.542,98.49,10.30379326]
[1770149762219,6.32311897,98.547,98.463,5.36086188]
[1770149762524,6.32311897,98.547,98.52,10.30379326]
[1770149762910,6.32311897,98.547,98.51,10.30379326]
[1770149763419,4.5,98.546,98.5,10.30379326]
[1770149763922,4.5,98.546,98.48,10.30379326]
[1770149764128,4.5,98.546,98.49,10.30379326]
[1770149764329,6.32311897,98.547,98.51,10.30379326]
[1770149764632,6.32311897,98.547,98.53,10.30379326]
[1770149764930,6.22156897,98.547,98.54,10.30379326]
[1770149765231,4.5,98.596,98.54,10.30379326]
[1770149765409,28.22,98.635,98.501,10.15218119]
[1770149765410,4.5,98.605,98.56,10.30379326]
[1770149765727,4.5,98.605,98.54,10.30379326]
[1770149765931,4.5,98.605,98.55,10.30379326]
[1770149766114,4.5,98.605,98.54,10.30379326]
[1770149766830,4.5,98.605,98.55,10.30379326]
[1770149769925,4.5,98.605,98.496,10.15269187]
[1770149770112,4.5,98.605,98.55,10.30379326]
[1770149770735,4.5,98.622,98.56,10.30379326]
[1770149770906,4.5,98.622,98.57,10.30379326]
[1770149771108,4.5,98.622,98.56,10.30379326]
[1770149771307,4.5,98.622,98.57,10.30379326]
[1770149771505,4.5,98.63,98.59,10.30379326]
[1770149772426,4.5,98.63,98.523,10.14988354]
[1770149772637,4.5,98.63,98.57,10.30379326]
[1770149772835,4.5,98.63,98.58,10.30379326]
[1770149773018,4.5,98.648,98.6,10.30379326]
[1770149773410,4.5,98.648,98.61,10.30379326]
[1770149774518,4.5,98.648,98.62,10.30379326]
[1770149775029,4.5,98.648,98.6,10.30379326]
[1770149775234,4.5,98.648,98.539,5.36086188]
[1770149775538,4.5,98.648,98.57,10.30379326]
[1770149777018,4.5,98.648,98.58,10.30379326]
[1770149777314,4.5,98.648,98.57,10.30379326]
[1770149778232,4.5,98.648,98.58,10.30379326]
[1770149779942,6.42880403,98.649,98.62,10.30379326]
[1770149780748,6.42880403,98.649,98.61,10.30379326]
[1770149781638,10.92880403,98.649,98.61,10.30379326]
[1770149781819,10.92880403,98.649,98.62,10.30379326]
[1770149782021,6.42880403,98.649,98.62,10.30379326]
[1770149782536,6.42880403,98.649,98.572,10.14486731]
[1770149782537,4.5,98.648,98.6,10.30379326]
[1770149782744,4.5,98.648,98.515,50.36207992]
[1770149782745,4.5,98.648,98.58,10.30379326]
[1770149782944,5.36086188,98.643,98.55,10.30379326]
[1770149783145,4.5,98.638,98.55,10.30379326]
[1770149783539,4.5,98.63,98.54,10.30379326]
[1770149783848,4.5,98.628,98.55,10.30379326]
[1770149784242,4.5,98.628,98.56,10.30379326]
[1770149784427,4.5,98.628,98.57,10.30379326]
[1770149785136,4.5,98.628,98.56,10.30379326]
[1770149785861,4.5,98.628,98.55,10.30379326]
[1770149786044,4.5,98.628,98.54,10.30379326]
[1770149786353,4.5,98.628,98.55,10.30379326]
[1770149786648,4.5,98.628,98.54,10.30379326]
[1770149787546,5.36086188,98.613,98.52,10.30379326]
[1770149787751,4.5,98.608,98.52,10.30379326]
[1770149788531,4.5,98.608,98.52,10.29756912]
[1770149790440,4.5,98.608,98.53,10.29756912]
[1770149791353,4.5,98.608,98.55,10.29756912]
[1770149792127,4.5,98.608,98.57,10.29756912]
[1770149792334,4.5,98.637,98.57,10.29756912]
[1770149792553,4.5,98.637,98.58,10.29756912]
[1770149792753,4.5,98.637,98.52,103.2]
[1770149792954,4.5,98.637,98.54,10.29756912]
[1770149793139,4.5,98.627,98.53,10.29756912]
[1770149793338,4.5,98.627,98.55,10.29756912]
[1770149793741,4.5,98.627,98.54,10.29756912]
[1770149793942,4.5,98.627,98.55,10.29756912]
[1770149794660,4.5,98.627,98.54,10.29756912]
[1770149794849,4.5,98.627,98.55,10.29756912]
[1770149796169,4.5,98.627,98.54,10.29756912]
[1770149796349,4.5,98.627,98.55,10.29756912]
[1770149796737,4.5,98.617,98.53,10.29756912]
[1770149796949,4.5,98.617,98.52,10.29756912]
[1770149797247,4.5,98.617,98.54,10.29756912]
[1770149799362,4.5,98.617,98.55,10.29756912]
[1770149799546,4.5,98.617,98.516,18.14984979]
[1770149799746,4.5,98.617,98.56,10.29756912]
[1770149800769,4.5,98.617,98.55,10.29756912]
[1770149800963,4.5,98.617,98.56,10.29756912]
[1770149801348,4.5,98.617,98.55,10.29756912]
[1770149802761,4.5,98.617,98.56,10.29756912]
[1770149802956,4.5,98.617,98.57,10.29756912]
[1770149805843,4.5,98.627,98.58,10.29756912]
[1770149806536,4.5,98.637,98.58,10.29756912]
[1770149807255,4.5,98.637,98.59,10.29756912]
[1770149807855,4.5,98.637,98.541,28.2]
[1770149808051,4.5,98.637,98.57,10.29756912]
[1770149808857,4.5,98.637,98.58,10.29756912]
[1770149809063,4.5,98.637,98.544,103.2]
[1770149809262,4.5,98.637,98.57,10.29756912]
[1770149809464,4.5,98.637,98.56,10.29756912]
[1770149810470,4.5,98.637,98.57,10.29756912]
[1770149811460,4.5,98.637,98.56,10.29756912]
[1770149812378,4.5,98.637,98.526,13.19840608]
[1770149812379,4.5,98.633,98.54,10.29756912]
[1770149812545,4.5,98.633,98.526,13.19840608]
[1770149812546,4.5,98.623,98.53,10.29756912]
[1770149812750,4.5,98.617,98.526,13.19840608]
[1770149812959,4.5,98.617,98.53,10.29756912]
[1770149813755,4.5,98.617,98.526,13.19840608]
[1770149813756,4.5,98.617,98.54,10.29756912]
[1770149814764,4.5,98.617,98.56,10.29756912]
[1770149815958,4.5,98.617,98.526,13.19840608]
[1770149816158,4.5,98.617,98.56,10.29756912]
[1770149816368,4.5,98.617,98.57,10.29756912]
[1770149816750,4.5,98.617,98.526,13.19840608]
[1770149816751,4.5,98.627,98.58,10.29756912]
[1770149816963,4.5,98.637,98.59,10.29756912]
[1770149817345,4.5,98.637,98.6,10.29756912]
[1770149817859,4.5,98.637,98.59,10.29756912]
[1770149818151,4.5,98.637,98.6,10.29756912]
[1770149818353,6.34691367,98.638,98.62,10.29756912]
[1770149818753,6.34691367,98.638,98.61,10.29756912]
[1770149819270,6.34691367,98.638,98.62,10.29756912]
[1770149820560,6.34691367,98.638,98.63,10.29756912]
[1770149821276,0.2,98.76,98.63,10.29756912]
[1770149821277,4.5,98.687,98.63,10.29756912]
[1770149821576,4.5,98.705,98.68,10.29756912]
[1770149821753,4.5,98.705,98.65,10.29756912]
[1770149822554,4.5,98.705,98.66,10.29756912]
[1770149822753,4.5,98.705,98.67,10.29756912]
[1770149822961,6.41583994,98.706,98.67,10.29756912]
[1770149823159,6.41583994,98.706,98.7,10.29756912]
[1770149823379,4.5,98.757,98.7,10.29756912]
[1770149823564,4.5,98.757,98.651,35.47860639]
[1770149823565,4.5,98.746,98.72,10.29756912]
[1770149823770,0.2,98.76,98.72,10.29756912]
[1770149824077,0.2,98.76,98.73,10.29756912]
[1770149824271,4.5,98.758,98.72,10.29756912]
[1770149824467,4.5,98.749,98.7,10.29756912]
[1770149824659,4.5,98.749,98.71,10.29756912]
[1770149825254,4.5,98.749,98.657,24.95283624]
[1770149825255,4.5,98.749,98.658,5.36086188]
[1770149825467,4.5,98.749,98.66,10.29756912]
[1770149825665,4.5,98.737,98.657,24.95283624]
[1770149825957,4.5,98.727,98.657,24.95283624]
[1770149826553,4.5,98.717,98.657,24.95283624]
[1770149826753,4.5,98.715,98.657,24.95283624]
[1770149826963,9.99320751,98.714,98.623,4.49999999]
[1770149827174,5.36086188,98.713,98.623,4.49999999]
[1770149827349,5.36086188,98.711,98.623,4.49999999]
[1770149827755,5.36086188,98.71,98.623,4.49999999]
[1770149828068,15.35406939,98.71,98.623,4.49999999]
[1770149828278,11.12288209,98.709,98.623,4.49999999]
[1770149828451,5.36086188,98.707,98.623,4.49999999]
[1770149828659,9.99320751,98.707,98.623,4.49999999]
[1770149828853,5.36086188,98.712,98.631,4.49999999]
[1770149829368,11.12288209,98.713,98.631,4.49999999]
[1770149829670,15.35406939,98.712,98.621,4.49999999]
[1770149830172,5.36086188,98.71,98.621,4.49999999]
[1770149832676,16.48374397,98.709,98.621,4.49999999]
[1770149834067,26.47695148,98.709,98.621,4.49999999]
[1770149835880,5.36086188,98.707,98.621,4.49999999]
[1770149836079,5.36086188,98.705,98.621,4.49999999]
[1770149836774,0.2,98.76,98.621,4.49999999]
[1770149836775,5.36086188,98.728,98.621,4.49999999]
[1770149836979,5.36086188,98.728,98.631,4.49999999]
[1770149837180,21.1160896,98.734,98.641,4.49999999]
[1770149837389,0.2,98.76,98.661,4.49999999]
[1770149837585,0.2,98.76,98.681,4.49999999]
[1770149837765,0.2,98.76,98.691,4.49999999]
[1770149838600,5.36086188,98.755,98.691,4.49999999]
[1770149839697,0.2,98.76,98.691,4.49999999]
[1770149840398,5.36086188,98.759,98.691,4.49999999]
[1770149841196,5.36086188,98.759,98.679,4.49999999]
[1770149841683,5.36086188,98.748,98.641,4.49999999]
[1770149842313,5.36086188,98.748,98.651,4.49999999]
[1770149842465,5.36086188,98.748,98.661,4.49999999]
[1770149842666,28.18,98.749,98.671,4.49999999]
[1770149843200,0.2,98.75,98.671,4.49999999]
[1770149844404,0.2,98.75,98.691,4.49999999]
[1770149844692,0.2,98.75,98.701,4.49999999]
[1770149848298,0.2,98.75,98.711,4.49999999]
[1770149851296,28.18,98.782,98.711,4.43526096]
[1770149851471,6.3688987,98.789,98.731,4.43526096]
[1770149851672,0.39600001,98.788,98.731,4.43526096]
[1770149852495,6.3688987,98.789,98.731,4.43526096]
[1770149852883,0.39600001,98.788,98.731,4.43526096]
[1770149854292,6.3688987,98.789,98.731,4.43526096]
[1770149854490,6.3688987,98.789,98.751,4.43526096]
[1770149855166,0.39600001,98.788,98.751,4.43526096]
[1770149855373,0.39600001,98.788,98.711,4.43526096]
[1770149855591,0.39600001,98.778,98.711,4.43526096]
[1770149855780,0.39600001,98.776,98.711,4.43526096]
[1770149856099,0.39600001,98.766,98.711,4.43526096]
[1770149856670,5.36086188,98.763,98.711,4.43526096]
[1770149856876,0.39600001,98.756,98.661,4.43526096]
[1770149857091,0.39600001,98.756,98.671,4.43526096]
[1770149857294,0.39600001,98.756,98.68,10.2606525]
[1770149857588,0.39600001,98.756,98.691,4.43526096]
[1770149858903,0.39600001,98.746,98.681,4.43526096]
[1770149859402,9.99320751,98.766,98.645,16.90550106]
[1770149859403,0.39600001,98.726,98.646,4.43526096]
[1770149861182,0.39600001,98.745,98.661,4.43526096]
[1770149861982,0.39600001,98.765,98.681,4.43526096]
[1770149862398,5.36086188,98.776,98.69,10.2606525]
[1770149862399,5.75686189,98.776,98.69,10.2606525]
[1770149862586,0.39600001,98.798,98.721,4.43526096]
[1770149862780,8.12930079,98.83,98.682,11.14691635]
[1770149862781,1.8688987,98.789,98.751,4.43526096]
[1770149863987,1.8688987,98.789,98.692,24.18864462]
[1770149863988,0.1,98.83,98.76,10.2606525]
[1770149864199,4.1516782,98.83,98.761,4.43526096]
[1770149864418,4.1516782,98.83,98.77,10.2606525]
[1770149864618,4.1516782,98.83,98.771,4.43526096]
[1770149864903,0.1,98.83,98.781,4.43526096]
[1770149865097,4.1516782,98.83,98.781,4.43526096]
[1770149865890,4.1516782,98.83,98.751,4.43526096]
[1770149865891,4.0516782,98.828,98.751,4.43526096]
[1770149866083,4.0516782,98.818,98.751,4.43526096]
[1770149866285,4.0516782,98.816,98.751,4.43526096]
[1770149870116,4.0516782,98.828,98.761,4.43526096]
[1770149870320,4.0516782,98.828,98.771,4.43526096]
[1770149870511,4.0516782,98.828,98.78,10.2606525]
[1770149870706,4.0516782,98.828,98.72,10.2606525]
[1770149870707,4.0516782,98.828,98.781,4.081933]
[1770149873627,0.1,98.83,98.781,4.081933]
[1770149875726,4.50751389,98.83,98.781,4.081933]
[1770149878915,0.1,98.83,98.781,4.081933]
[1770149879120,0.1,98.83,98.791,4.05929507]
[1770149879518,4.40751389,98.886,98.821,4.05929507]
[1770149879717,4.40751389,98.886,98.782,10.12330181]
[1770149879718,4.40751389,98.886,98.831,4.05929507]
[1770149879925,4.40751389,98.903,98.851,4.05929507]
[1770149880140,4.40751389,98.914,98.861,4.05929507]
[1770149880523,4.40751389,98.914,98.802,4.05929507]
[1770149880712,4.40751389,98.912,98.831,4.05929507]
[1770149880931,4.40751389,98.896,98.811,4.05929507]
[1770149881130,5.36086188,98.887,98.811,4.05929507]
[1770149881433,4.40751389,98.886,98.811,4.05929507]
[1770149881631,5.36086188,98.881,98.781,4.05929507]
[1770149881930,4.40751389,98.876,98.781,4.05929507]
[1770149882121,5.36086188,98.875,98.781,4.05929507]
[1770149882312,4.40751389,98.866,98.781,4.05929507]
[1770149882709,4.40751389,98.866,98.791,4.05929507]
[1770149882928,4.40751389,98.888,98.811,4.05929507]
[1770149883128,4.40751389,98.907,98.841,4.05929507]
[1770149883632,4.40751389,98.905,98.841,4.05929507]
[1770149884131,4.40751389,98.905,98.827,4.05929507]
[1770149884429,5.36086188,98.9,98.827,4.05929507]
[1770149884634,4.40751389,98.895,98.815,4.05929507]
[1770149885746,5.36086188,98.88,98.803,4.05929507]
[1770149885915,4.40751389,98.875,98.803,4.05929507]
[1770149886114,4.40751389,98.875,98.811,4.05929507]
[1770149886315,4.40751389,98.875,98.821,4.05929507]
[1770149888009,4.40751389,98.875,98.754,25.3152429]
[1770149888010,4.40751389,98.875,98.791,4.05929507]
[1770149889419,4.40751389,98.875,98.802,4.05929507]
[1770149890023,4.40751389,98.875,98.811,4.05929507]
[1770149891225,4.40751389,98.875,98.821,4.05929507]
[1770149891832,4.40751389,98.875,98.801,4.05929507]
[1770149892328,4.40751389,98.875,98.811,4.05929507]
[1770149892526,4.40751389,98.895,98.821,4.05929507]
[1770149892732,4.40751389,98.895,98.831,4.05929507]
[1770149896120,4.40751389,98.895,98.811,4.05929507]
[1770149896723,4.40751389,98.895,98.831,4.05929507]
[1770149897046,4.40751389,98.895,98.841,4.05929507]
[1770149897637,4.40751389,98.924,98.851,4.05929507]
[1770149897820,4.40751389,98.924,98.861,4.05929507]
[1770149898027,4.40751389,98.924,98.871,4.05929507]
[1770149900122,4.40751389,98.924,98.857,4.05929507]
[1770149900317,5.36086188,98.919,98.844,4.05929507]
[1770149900539,4.07878327,98.906,98.833,4.24452844]
[1770149901331,5.36086188,98.897,98.821,4.24452844]
[1770149901527,4.07878327,98.896,98.821,4.24452844]
[1770149903323,4.07878327,98.896,98.743,103.2]
[1770149903324,4.07878327,98.914,98.841,4.24452844]
[1770149904124,4.07878327,98.914,98.861,4.24452844]
[1770149904331,0.2,98.93,98.808,38.84060558]
[1770149904332,0.2,98.93,98.881,4.24452844]
[1770149904531,2.00911944,98.925,98.9,10.2606525]
[1770149904745,0.2,98.93,98.9,10.2606525]
[1770149904924,0.2,98.93,98.88,10.2606525]
[1770149905124,0.2,98.93,98.89,10.2606525]
[1770149905337,0.2,98.93,98.88,10.2606525]
[1770149906248,4.7,98.93,98.87,10.2606525]
[1770149906752,4.7,98.93,98.85,10.2606525]
[1770149908128,4.7,98.93,98.84,10.2606525]
[1770149908334,4.5,98.926,98.84,10.2606525]
[1770149908533,5.36086188,98.923,98.83,10.2606525]
[1770149908827,4.5,98.906,98.82,10.2606525]
[1770149909249,4.7,98.93,98.806,5.36086188]
[1770149909551,4.7,98.93,98.87,10.2606525]
[1770149911230,0.2,98.93,98.89,10.22250818]
[1770149911526,0.2,98.93,98.9,10.22250818]
[1770149911920,0.2,98.93,98.88,10.22250818]
[1770149912324,0.2,98.93,98.91,10.22250818]
[1770149912646,0.2,98.93,98.838,6.37261849]
[1770149912647,0.2,98.93,98.92,10.22250818]
[1770149912947,0.2,98.93,98.91,10.22250818]
[1770149913252,0.2,98.93,98.89,10.22250818]
[1770149913458,0.2,98.93,98.88,10.22250818]
[1770149913951,0.2,98.93,98.84,28.12]
[1770149913952,0.2,98.93,98.89,10.22250818]
[1770149914332,0.2,98.93,98.88,10.22250818]
[1770149914553,0.2,98.93,98.89,10.22250818]
[1770149914754,0.2,98.93,98.88,10.22250818]
[1770149916143,0.2,98.93,98.9,10.22250818]
[1770149916347,0.2,98.93,98.89,10.22250818]
[1770149916542,0.2,98.93,98.9,10.22250818]
[1770149917057,0.2,98.93,98.89,10.22250818]
[1770149917348,0.2,98.93,98.91,10.22250818]
[1770149917529,0.2,98.93,98.92,10.22250818]
[1770149917730,0.2,98.93,98.91,10.22250818]
[1770149918461,0.2,98.93,98.92,10.22250818]
[1770149918843,0.2,98.93,98.91,10.22250818]
[1770149920055,0.2,98.93,98.92,10.22250818]
[1770149920442,0.1,99.0,98.921,35.38176929]
[1770149920634,36.46100284,99.093,98.921,35.38176929]
[1770149920635,4.5,99.145,99.02,10.22250818]
[1770149920863,4.5,99.163,99.052,5.28292297]
[1770149921031,4.5,99.163,99.1,10.22250818]
[1770149921237,4.5,99.176,99.11,10.22250818]
[1770149921458,4.5,99.189,99.11,10.22250818]
[1770149921752,4.5,99.189,99.052,10.64378485]
[1770149921753,4.5,99.189,99.111,39.16459884]
[1770149922052,4.5,99.214,99.15,10.22250818]
[1770149922454,4.5,99.214,99.083,166.52705305]
[1770149922455,4.5,99.202,99.14,10.22250818]
[1770149922659,4.5,99.187,99.14,10.22250818]
[1770149922850,4.5,99.187,99.131,5.36086188]
[1770149923155,4.5,99.187,99.11,10.22250818]
[1770149923344,4.5,99.187,99.068,28.1]
[1770149923541,4.5,99.187,99.064,5.36086188]
[1770149923855,4.5,99.187,99.08,10.22250818]
[1770149924343,4.5,99.185,99.071,5.36086188]
[1770149924542,4.5,99.184,99.11,10.22250818]
[1770149924848,4.5,99.183,99.12,10.22250818]
[1770149925151,6.39875441,99.183,99.15,10.22250818]
[1770149925459,6.39875441,99.183,99.16,10.22250818]
[1770149925758,6.39875441,99.183,99.136,28.08]
[1770149925759,6.39875441,99.183,99.13,28.08]
[1770149925942,6.39875441,99.183,99.14,10.22250818]
[1770149926137,6.39875441,99.183,99.15,10.22250818]
[1770149926360,6.39875441,99.183,99.13,10.22250818]
[1770149926652,6.39875441,99.183,99.14,10.22250818]
[1770149927436,4.5,99.182,99.12,10.22250818]
[1770149928052,4.5,99.182,99.13,10.22250818]
[1770149928441,4.5,99.182,99.11,10.22250818]
[1770149928638,4.5,99.182,99.12,10.22250818]
[1770149929054,4.5,99.182,99.13,10.22250818]
[1770149929555,6.39875441,99.183,99.15,10.22250818]
[1770149930239,4.5,99.182,99.13,10.22250818]
[1770149930660,4.5,99.182,99.12,10.22250818]
[1770149930858,4.5,99.182,99.13,10.22250818]
[1770149931559,5.50824746,99.182,99.1,10.22250818]
[1770149931763,4.5,99.181,99.11,10.22250818]
[1770149931968,4.5,99.181,99.081,5.36086188]
[1770149932142,4.5,99.181,99.09,10.22250818]
[1770149932455,4.5,99.179,99.08,10.22250818]
[1770149933544,4.5,99.179,99.063,43.51539589]
[1770149933545,4.5,99.179,99.09,10.22250818]
[1770149933743,4.5,99.179,99.092,5.36086188]
[1770149933947,4.5,99.179,99.091,11.10090724]
[1770149934148,4.5,99.179,99.12,10.22250818]
[1770149934459,4.5,99.239,99.15,10.22250818]
[1770149934665,4.5,99.239,99.131,10.08766178]
[1770149934666,4.5,99.239,99.16,10.22250818]
[1770149935742,4.5,99.239,99.14,10.22250818]
[1770149935968,4.5,99.239,99.15,10.22250818]
[1770149936559,4.5,99.237,99.16,10.22250818]
[1770149936967,4.5,99.237,99.19,10.22250818]
[1770149937268,4.5,99.237,99.151,10.08562697]
[1770149937269,4.5,99.269,99.2,10.22250818]
[1770149937653,4.5,99.269,99.19,10.22250818]
[1770149937945,5.50736382,99.269,99.18,10.22250818]
[1770149938168,5.50736382,99.269,99.19,10.22250818]
[1770149938366,5.50736382,99.269,99.17,10.22250818]
[1770149938665,4.5,99.268,99.16,10.22250818]
[1770149939550,4.5,99.268,99.068,40.37613666]
[1770149939551,4.5,99.262,99.14,10.22250818]
[1770149940165,4.5,99.262,99.15,10.22250818]
[1770149940373,4.5,99.262,99.19,10.22250818]
[1770149940558,4.5,99.262,99.2,10.22250818]
[1770149941071,4.5,99.262,99.21,10.22250818]
[1770149941676,4.5,99.262,99.19,10.22250818]
[1770149941975,4.5,99.262,99.2,10.22250818]
[1770149942267,4.5,99.26,99.17,10.22250818]
[1770149942472,4.5,99.26,99.18,10.22250818]
[1770149942674,4.5,99.26,99.143,29.04864407]
[1770149942675,4.5,99.26,99.2,10.22250818]
[1770149943748,4.5,99.26,99.17,10.22250818]
[1770149943967,4.5,99.258,99.16,10.22250818]
[1770149944167,4.5,99.258,99.17,10.22250818]
[1770149944363,4.5,99.258,99.18,10.22250818]
[1770149944554,4.5,99.258,99.19,10.22250818]
[1770149944748,4.5,99.258,99.18,10.22250818]
[1770149945165,5.50748166,99.258,99.17,10.22250818]
[1770149945662,4.5,99.258,99.19,10.22250818]
[1770149945862,4.5,99.258,99.149,1.00858304]
[1770149946055,4.5,99.258,99.21,10.22250818]
[1770149946257,4.5,99.258,99.147,85.73128787]
[1770149946258,4.5,99.271,99.23,10.22250818]
[1770149946458,4.5,99.286,99.23,10.22250818]
[1770149946662,4.5,99.286,99.204,5.36086188]
[1770149946663,5.50691752,99.313,99.24,10.22250818]
[1770149946859,5.50691752,99.313,99.202,10.0803575]
[1770149946860,4.5,99.312,99.23,10.22250818]
[1770149947063,4.5,99.312,99.22,10.22250818]
[1770149948848,1.0069378,99.311,99.22,10.22250818]
[1770149949148,4.5,99.31,99.22,10.22250818]
[1770149949349,4.5,99.31,99.221,1.00785116]
[1770149949556,4.5,99.31,99.24,10.22250818]
[1770149949863,4.5,99.31,99.25,10.22250818]
[1770149950056,4.5,99.31,99.24,10.22250818]
[1770149950273,4.5,99.31,99.23,10.22250818]
[1770149950462,4.5,99.31,99.24,10.22250818]
[1770149950851,4.5,99.31,99.204,1.00802387]
[1770149950852,4.5,99.31,99.209,10.07969242]
[1770149951054,4.5,99.31,99.24,10.22250818]
[1770149951255,4.5,99.308,99.24,10.22250818]
[1770149951467,4.5,99.308,99.193,5.36086188]
[1770149951468,4.5,99.308,99.22,10.22250818]
[1770149951777,4.5,99.308,99.24,10.22250818]
[1770149951978,4.5,99.308,99.25,10.22250818]
[1770149952155,4.5,99.308,99.26,10.22250818]
[1770149952664,4.5,99.308,99.27,10.22250818]
[1770149953074,4.5,99.322,99.26,10.22250818]
[1770149953374,4.5,99.313,99.26,10.22250818]
[1770149953778,4.5,99.326,99.27,10.22250818]
[1770149954175,4.5,99.326,99.28,10.22250818]
[1770149954495,6.36771286,99.37,99.3,10.22250818]
[1770149954496,4.5,99.351,99.3,10.22250818]
[1770149954776,0.2,99.39,99.3,10.22250818]
[1770149954777,4.5,99.381,99.301,5.36086188]
[1770149954959,4.5,99.381,99.31,10.22250818]
[1770149954960,4.5,99.37,99.31,10.22250818]
[1770149955163,4.5,99.339,99.249,28.02]
[1770149955369,4.5,99.339,99.27,10.22250818]
[1770149955860,4.5,99.339,99.26,10.22250818]
[1770149956067,4.5,99.339,99.229,5.36086188]
[1770149956365,4.5,99.339,99.29,10.22250818]
[1770149956556,4.5,99.339,99.28,10.22250818]
[1770149957876,4.5,99.339,99.27,10.22250818]
[1770149958175,4.5,99.339,99.231,28.02]
[1770149958361,4.5,99.339,99.242,10.07635433]
[1770149958566,4.5,99.337,99.24,10.22250818]
[1770149958977,4.5,99.337,99.25,10.22250818]
[1770149959278,4.5,99.335,99.25,10.22250818]
[1770149959657,4.5,99.335,99.24,10.22250818]
[1770149959858,4.5,99.335,99.23,10.22250818]
[1770149960058,4.5,99.335,99.167,40.33567419]
[1770149960059,4.5,99.333,99.21,10.22250818]
[1770149960258,4.5,99.329,99.2,10.22250818]
[1770149960462,4.5,99.329,99.157,25.21236857]
[1770149960463,4.5,99.321,99.19,10.22250818]
[1770149960660,4.5,99.315,99.2,35.42407408]
[1770149960876,4.5,99.315,99.25,10.22250818]
[1770149961065,4.5,99.315,99.23,10.22250818]
[1770149961266,4.5,99.313,99.19,28.0]
[1770149961479,4.5,99.313,99.23,10.22250818]
[1770149961677,4.5,99.313,99.24,10.22250818]
[1770149962380,4.5,99.313,99.23,10.22250818]
[1770149962580,4.5,99.313,99.201,1.00805435]
[1770149962763,4.5,99.313,99.23,10.22250818]
[1770149963162,4.5,99.313,99.177,1.00829829]
[1770149963163,4.5,99.313,99.24,10.22250818]
[1770149964282,4.5,99.311,99.24,10.22250818]
[1770149965761,4.5,99.309,99.193,5.36086188]
[1770149965961,4.5,99.309,99.15,40.34267233]
[1770149965962,4.5,99.309,99.22,10.22250818]
[1770149966178,4.5,99.309,99.23,10.22250818]
[1770149966380,4.5,99.309,99.22,10.22250818]
[1770149966782,4.5,99.309,99.175,33.36086188]
[1770149966969,4.5,99.309,99.2,10.22250818]
[1770149967170,4.5,99.301,99.19,10.22250818]
[1770149967487,4.5,99.291,99.17,10.22250818]
[1770149967686,4.5,99.291,99.18,10.22250818]
[1770149968286,4.5,99.291,99.19,10.22250818]
[1770149968582,4.5,99.291,99.18,10.22250818]
[1770149968785,4.5,99.291,99.17,10.22250818]
[1770149969188,3.52502769,99.29,99.17,10.22250818]
[1770149969369,4.5,99.289,99.17,10.22250818]